bitfinex/quotes_BTCUSD_20240803
["timestamp","ask_amount","ask_price","bid_price","bid_amount"]
[1722718902133,0.61006092,60387.0,60386.0,0.332615]
[1722718902343,0.61006092,60387.0,60386.0,0.498216]
[1722718902536,0.61006092,60387.0,60386.0,0.167014]
[1722718902740,0.60994079,60387.0,60386.0,0.498216]
[1722718902948,0.60994079,60387.0,60386.0,0.829418]
[1722718903153,0.65994079,60387.0,60386.0,0.829418]
[1722718903305,0.55994079,60387.0,60386.0,1.29972]
[1722718903489,0.3941899,60387.0,60386.0,1.29972]
[1722718904666,0.3941899,60387.0,60386.0,1.30172]
[1722718904860,0.55994079,60387.0,60386.0,0.968518]
[1722718905970,0.55992945,60387.0,60386.0,0.968518]
[1722718906178,0.39417856,60387.0,60386.0,1.29972]
[1722718906400,0.55992945,60387.0,60386.0,1.29972]
[1722718908795,0.39417856,60387.0,60386.0,1.29972]
[1722718908991,0.39414661,60387.0,60386.0,1.29972]
[1722718909196,0.39414661,60387.0,60386.0,0.968518]
[1722718909408,0.5598975,60387.0,60386.0,0.637316]
[1722718909621,0.21575089,60387.0,60386.0,0.968518]
[1722718909782,0.55992131,60387.0,60386.0,0.968518]
[1722718910002,0.55992131,60387.0,60386.0,0.140513]
[1722718910202,1.25671631,60387.0,60386.0,0.001413]
[1722718910750,1.58791331,60387.0,60386.0,0.001413]
[1722718910879,1.99681031,60387.0,60386.0,0.001413]
[1722718911079,1.66561331,60387.0,60386.0,0.001413]
[1722718911281,1.99681031,60387.0,60386.0,0.001413]
[1722718911526,2.00684794,60387.0,60386.0,0.001413]
[1722718912110,0.9281,60379.0,60378.0,0.14999999]
[1722718912290,1.53802131,60379.0,60378.0,0.14999999]
[1722718912494,1.86926131,60379.0,60378.0,0.14999999]
[1722718913116,1.53802131,60379.0,60378.0,0.14999999]
[1722718913653,1.53814749,60379.0,60378.0,0.14999999]
[1722718914046,1.53814829,60379.0,60378.0,0.14999999]
[1722718914985,1.20690829,60379.0,60378.0,0.14999999]
[1722718915193,1.53814829,60379.0,60378.0,0.14999999]
[1722718915797,1.86938829,60379.0,60378.0,0.14999999]
[1722718916080,1.53814829,60379.0,60378.0,0.14999999]
[1722718916716,1.86938829,60379.0,60378.0,0.14999999]
[1722718916851,1.89238829,60379.0,60378.0,0.14999999]
[1722718917049,1.56114829,60379.0,60378.0,0.14999999]
[1722718917573,1.8923891,60379.0,60378.0,0.14999999]
[1722718917934,1.90220282,60379.0,60378.0,0.14999999]
[1722718919035,1.57096282,60379.0,60378.0,0.14999999]
[1722718919594,1.54796282,60379.0,60378.0,0.14999999]
[1722718920565,1.87920282,60379.0,60378.0,0.14999999]
[1722718920719,1.54796282,60379.0,60378.0,0.14999999]
[1722718921066,1.54796326,60379.0,60378.0,0.14999999]
[1722718921407,1.87920326,60379.0,60378.0,0.14999999]
[1722718921828,1.92920326,60379.0,60378.0,0.14999999]
[1722718922275,1.95220326,60379.0,60378.0,0.14999999]
[1722718923356,2.11795415,60379.0,60378.0,0.14999999]
[1722718923629,2.28344326,60379.0,60378.0,0.14999999]
[1722718924076,2.28344326,60379.0,60378.0,0.11066771]
[1722718924077,1.95220326,60379.0,60378.0,0.11066771]
[1722718924248,1.45159881,60379.0,60378.0,0.11066771]
[1722718924446,1.39138407,60379.0,60378.0,0.11066771]
[1722718924651,0.46328407,60379.0,60378.0,0.35759071]
[1722718924866,0.36328407,60379.0,60378.0,0.75413671]
[1722718925016,0.36328407,60379.0,60378.0,0.25726771]
[1722718925224,0.52888101,60379.0,60378.0,0.25726771]
[1722718925422,0.86012101,60379.0,60378.0,0.25726771]
[1722718925629,0.86012101,60379.0,60378.0,0.11066771]
[1722718925630,2.03694101,60379.0,60378.0,0.11066771]
[1722718925828,2.03694101,60379.0,60368.0,0.21529999]
[1722718925829,0.1,60369.0,60368.0,0.14999999]
[1722718926052,1.92817929,60369.0,60368.0,0.14999999]
[1722718926255,0.597025,60359.0,60358.0,0.15930999]
[1722718926745,2.55237229,60359.0,60358.0,0.00505965]
[1722718926943,3.09039423,60359.0,60358.0,0.00505965]
[1722718927148,2.73904423,60359.0,60358.0,0.00505965]
[1722718927350,3.09039423,60359.0,60358.0,0.00505965]
[1722718927589,2.75904423,60359.0,60358.0,0.00505965]
[1722718927846,2.73904423,60359.0,60358.0,0.00505965]
[1722718928108,2.75904423,60359.0,60358.0,0.00505965]
[1722718928316,2.88372229,60359.0,60358.0,0.00505965]
[1722718928513,2.88372229,60359.0,60352.0,0.00931]
[1722718928514,1.15984,60353.0,60352.0,0.00931]
[1722718928689,1.56328729,60353.0,60352.0,0.00931]
[1722718928895,1.56337224,60353.0,60352.0,0.00931]
[1722718929053,1.23198924,60353.0,60352.0,0.00931]
[1722718929261,1.23198924,60353.0,60352.0,0.15591]
[1722718929642,0.30353224,60353.0,60352.0,0.15591]
[1722718929759,0.13778135,60353.0,60352.0,0.652993]
[1722718930134,0.1,60367.0,60357.0,0.331361]
[1722718930282,0.30348726,60366.0,60363.0,0.0813]
[1722718930463,0.66273489,60364.0,60363.0,0.0813]
[1722718930826,0.30348726,60364.0,60362.0,0.0653]
[1722718931064,0.30348726,60364.0,60348.0,0.14999999]
[1722718931065,0.165689,60354.0,60353.0,0.0653]
[1722718931192,1.13193226,60354.0,60353.0,0.0653]
[1722718931602,0.828457,60353.0,60348.0,0.21529999]
[1722718931800,1.13194426,60353.0,60348.0,0.14999999]
[1722718932222,0.90056126,60353.0,60352.0,0.07461]
[1722718932582,0.76282489,60353.0,60352.0,0.07461]
[1722718932784,0.90058844,60353.0,60352.0,0.07461]
[1722718932971,0.90058816,60353.0,60352.0,0.07461]
[1722718933206,0.76282489,60353.0,60352.0,0.15591]
[1722718933477,0.76282489,60353.0,60352.0,0.07461]
[1722718933478,1.09420789,60353.0,60352.0,0.07461]
[1722718933681,1.42559089,60353.0,60352.0,0.07461]
[1722718933883,1.56335706,60353.0,60352.0,0.07461]
[1722718934084,1.42559089,60353.0,60352.0,0.00931]
[1722718934381,1.89473977,60353.0,60352.0,0.00931]
[1722718934633,1.94022834,60353.0,60352.0,0.00931]
[1722718934830,1.93773977,60353.0,60352.0,0.00931]
[1722718935029,1.92773977,60353.0,60352.0,0.00931]
[1722718935180,1.94773977,60353.0,60352.0,0.00931]
[1722718935387,1.92773977,60353.0,60352.0,0.00931]
[1722718935792,1.56335677,60353.0,60352.0,0.00931]
[1722718936567,1.56336937,60353.0,60352.0,0.00931]
[1722718936982,1.10698637,60353.0,60352.0,0.00931]
[1722718937404,0.77560337,60353.0,60352.0,0.00931]
[1722718937606,0.44422037,60353.0,60352.0,0.00931]
[1722718937809,0.27852937,60353.0,60352.0,0.15591]
[1722718938156,0.331339,60362.0,60354.0,0.0653]
[1722718938157,0.165686,60355.0,60354.0,0.0653]
[1722718938331,0.30350809,60355.0,60354.0,0.0653]
[1722718938548,0.16575089,60355.0,60354.0,0.0966]
[1722718938937,0.33143689,60355.0,60354.0,0.0966]
[1722718939182,0.66280889,60355.0,60354.0,0.0966]
[1722718939577,0.30350388,60355.0,60354.0,0.0966]
[1722718939711,0.16575089,60355.0,60354.0,0.593667]
[1722718940116,0.165646,60370.0,60356.0,0.0813]
[1722718940340,0.63477014,60369.0,60361.0,0.08291805]
[1722718940544,0.63477014,60369.0,60365.0,0.0813]
[1722718940545,0.496968,60366.0,60365.0,0.0813]
[1722718940757,0.30347982,60366.0,60365.0,0.0813]
[1722718941116,0.80044782,60366.0,60365.0,0.0813]
[1722718941268,1.13175982,60366.0,60365.0,0.0813]
[1722718941472,1.13175982,60366.0,60365.0,0.15555918]
[1722718941473,0.30347982,60366.0,60365.0,0.15555918]
[1722718941688,0.46913582,60366.0,60365.0,0.15555918]
[1722718941892,1.13175982,60366.0,60365.0,0.15555918]
[1722718942680,1.23175982,60366.0,60365.0,0.15555918]
[1722718943056,0.90044782,60366.0,60365.0,0.15555918]
[1722718943575,1.23175982,60366.0,60365.0,0.15555918]
[1722718944216,1.23175982,60366.0,60365.0,0.1466]
[1722718945659,0.90044782,60366.0,60365.0,0.1466]
[1722718945859,1.23175982,60366.0,60365.0,0.1466]
[1722718946091,1.09403089,60366.0,60365.0,0.1466]
[1722718946288,1.23176284,60366.0,60365.0,0.1466]
[1722718946487,0.497067,60354.0,60353.0,0.00157439]
[1722718946694,0.331367,60357.0,60353.0,0.00157439]
[1722718946848,0.49711789,60357.0,60353.0,0.00157439]
[1722718947068,0.165686,60355.0,60354.0,0.141]
[1722718947272,0.165686,60355.0,60352.0,0.00931]
[1722718947273,0.165691,60353.0,60352.0,0.00931]
[1722718947481,1.13195988,60353.0,60352.0,0.00931]
[1722718947671,1.56334288,60353.0,60352.0,0.00931]
[1722718948078,1.56335448,60353.0,60352.0,0.00931]
[1722718948741,1.66335448,60353.0,60352.0,0.00931]
[1722718949473,1.66336038,60353.0,60352.0,0.00931]
[1722718950842,1.99474338,60353.0,60352.0,0.00931]
[1722718951245,1.99475353,60353.0,60352.0,0.00931]
[1722718953364,0.828512,60349.0,60348.0,0.13887477]
[1722718953533,0.13777964,60349.0,60348.0,0.27987477]
[1722718953738,0.26575089,60353.0,60348.0,0.27987477]
[1722718953739,0.16575089,60353.0,60348.0,0.27987477]
[1722718953947,0.165683,60356.0,60351.0,0.00157439]
[1722718954147,0.165689,60354.0,60352.0,0.141]
[1722718954367,0.30344339,60353.0,60352.0,0.141]
[1722718954589,0.30344767,60353.0,60352.0,0.141]
[1722718955508,0.63483067,60353.0,60352.0,0.141]
[1722718955639,0.13775667,60353.0,60352.0,0.141]
[1722718956081,0.30344567,60354.0,60352.0,0.141]
[1722718956286,0.30344767,60353.0,60352.0,0.141]
[1722718956431,0.13775667,60353.0,60352.0,0.141]
[1722718956628,0.30344767,60353.0,60352.0,0.141]
[1722718956843,0.13775667,60353.0,60352.0,0.141]
[1722718957045,0.165664,60363.0,60352.0,0.411589]
[1722718957241,0.16567,60361.0,60359.0,0.141]
[1722718957442,0.63475589,60360.0,60359.0,0.141]
[1722718957643,0.30341089,60360.0,60359.0,0.141]
[1722718957868,0.13773889,60360.0,60359.0,0.141]
[1722718958093,0.13773329,60360.0,60359.0,0.141]
[1722718958590,0.16575089,60362.0,60359.0,0.141]
[1722718958796,0.165672,60360.0,60359.0,0.141]
[1722718959118,0.13773218,60360.0,60359.0,0.141]
[1722718959368,0.30340418,60360.0,60359.0,0.141]
[1722718959726,0.30290418,60360.0,60359.0,0.141]
[1722718959930,0.13723218,60360.0,60359.0,0.141]
[1722718960297,0.30290418,60360.0,60359.0,0.141]
[1722718960491,0.63424918,60360.0,60359.0,0.141]
[1722718960959,0.30290418,60360.0,60359.0,0.141]
[1722718961371,0.16567,60361.0,60359.0,0.141]
[1722718961571,0.165672,60360.0,60359.0,0.141]
[1722718961948,0.16575089,60362.0,60359.0,0.141]
[1722718962167,0.497017,60360.0,60359.0,0.141]
[1722718962711,0.165672,60360.0,60359.0,0.141]
[1722718962838,0.331322,60365.0,60359.0,0.141]
[1722718963034,0.16575089,60364.0,60360.0,0.00157439]
[1722718963368,0.165664,60363.0,60360.0,0.00157439]
[1722718963575,0.331288,60371.0,60360.0,0.00157439]
[1722718963576,0.331259,60376.0,60364.0,0.0608]
[1722718963780,0.00083,60386.0,60374.0,0.26111805]
[1722718963981,0.165612,60382.0,60378.0,0.165622]
[1722718964181,0.496885,60376.0,60375.0,0.146]
[1722718964484,0.165628,60376.0,60375.0,0.146]
[1722718964706,0.331246,60378.0,60375.0,0.146]
[1722718964891,0.165623,60378.0,60375.0,0.146]
[1722718965109,0.165622,60379.0,60375.0,0.31163]
[1722718965315,0.165618,60380.0,60376.0,0.165628]
[1722718965726,0.165618,60380.0,60375.0,0.146]
[1722718965727,0.496885,60376.0,60375.0,0.146]
[1722718966197,0.331234,60381.0,60375.0,0.146]
[1722718966411,0.165628,60376.0,60375.0,0.146]
[1722718966802,0.496885,60376.0,60375.0,0.146]
[1722718966977,0.828142,60376.0,60375.0,0.146]
[1722718967174,0.496885,60376.0,60375.0,0.146]
[1722718968162,0.99389289,60376.0,60375.0,0.146]
[1722718968371,0.496918,60372.0,60371.0,0.0643]
[1722718968797,0.828197,60372.0,60371.0,0.0643]
[1722718969417,0.165635,60374.0,60371.0,0.14721805]
[1722718969624,0.331268,60374.0,60371.0,0.14721805]
[1722718969831,0.1,60375.0,60371.0,0.14721805]
[1722718970031,0.1,60375.0,60372.0,0.165638]
[1722718970236,0.1,60375.0,60371.0,0.1505305]
[1722718970237,0.1,60375.0,60373.0,0.165636]
[1722718970410,0.165639,60372.0,60371.0,0.0643]
[1722718970671,0.496918,60372.0,60371.0,0.0643]
[1722718970874,0.165639,60372.0,60371.0,0.0643]
[1722718971076,0.496918,60372.0,60371.0,0.0643]
[1722718971237,0.828197,60372.0,60371.0,0.0643]
[1722718971444,0.16565,60368.0,60367.0,0.0643]
[1722718971683,0.828252,60368.0,60367.0,0.0643]
[1722718971884,0.1,60375.0,60368.0,0.165649]
[1722718972113,0.165641,60372.0,60368.0,0.16565]
[1722718972317,0.165643,60371.0,60368.0,0.01652526]
[1722718972731,0.331279,60372.0,60368.0,0.01652526]
[1722718972932,0.165638,60373.0,60368.0,0.01652526]
[1722718973103,0.165637,60373.0,60369.0,0.165647]
[1722718973302,0.1,60375.0,60374.0,0.165634]
[1722718973480,0.1,60375.0,60374.0,0.97417]
[1722718974522,0.1,60375.0,60374.0,1.305438]
[1722718974749,0.1,60375.0,60374.0,0.97417]
[1722718974955,0.1,60375.0,60374.0,0.642902]
[1722718975151,0.1,60375.0,60374.0,0.311634]
[1722718975353,0.596893,60375.0,60374.0,0.146]
[1722718976524,0.265631,60375.0,60374.0,0.146]
[1722718977350,0.1,60375.0,60374.0,0.146]
[1722718977556,0.1,60375.0,60374.0,0.311634]
[1722718977752,0.1,60375.0,60374.0,0.146]
[1722718978001,0.1,60375.0,60368.0,0.08082526]
[1722718978211,0.1,60375.0,60368.0,0.0643]
[1722718978212,0.165647,60369.0,60368.0,0.0643]
[1722718978411,0.496942,60369.0,60368.0,0.0643]
[1722718980347,0.165647,60369.0,60368.0,0.0643]
[1722718980686,0.16575089,60374.0,60368.0,0.0643]
[1722718980878,0.828237,60369.0,60368.0,0.0643]
[1722718981083,0.16575089,60374.0,60363.0,0.0643]
[1722718981084,0.828307,60364.0,60363.0,0.0643]
[1722718981230,0.165672,60360.0,60358.0,0.0643]
[1722718982113,0.59704689,60369.0,60358.0,0.14721805]
[1722718982288,0.828362,60360.0,60358.0,0.0643]
[1722718982443,0.165672,60360.0,60358.0,0.0643]
[1722718983032,0.828375,60359.0,60358.0,0.0643]
[1722718983291,0.63476669,60359.0,60358.0,0.0643]
[1722718983537,0.497067,60354.0,60353.0,0.0643]
[1722718983749,0.497067,60354.0,60352.0,0.082613]
[1722718983750,0.165691,60353.0,60352.0,0.082613]
[1722718983961,0.497074,60353.0,60352.0,0.082613]
[1722718984961,0.828457,60353.0,60352.0,0.082613]
[1722718985332,1.32559089,60353.0,60352.0,0.000913]
[1722718985533,1.56335044,60353.0,60352.0,0.000913]
[1722718985735,1.89473344,60353.0,60352.0,0.000913]
[1722718985937,1.96013344,60353.0,60352.0,0.000913]
[1722718987206,1.62875044,60353.0,60352.0,0.000913]
[1722718987761,1.96013344,60353.0,60352.0,0.000913]
[1722718988167,1.62875044,60353.0,60352.0,0.000913]
[1722718988498,1.65175044,60353.0,60352.0,0.000913]
[1722718989239,1.51399089,60353.0,60352.0,0.000913]
[1722718989433,1.58636682,60353.0,60352.0,0.000913]
[1722718990325,1.91774982,60353.0,60352.0,0.000913]
[1722718990547,6.17743882,60353.0,60352.0,0.000913]
[1722718990699,1.91774982,60353.0,60352.0,0.000913]
[1722718993176,1.62977782,60353.0,60352.0,0.000913]
[1722718993383,1.46336682,60353.0,60352.0,0.000913]
[1722718993555,1.13198382,60353.0,60352.0,0.000913]
[1722718993761,0.33140189,60353.0,60352.0,0.000913]
[1722718993958,0.165691,60353.0,60352.0,0.00248739]
[1722718994136,0.828457,60353.0,60352.0,0.00248739]
[1722718994336,0.165691,60353.0,60352.0,0.000913]
[1722718994538,0.331342,60361.0,60352.0,0.00248739]
[1722718994785,0.16575089,60360.0,60352.0,0.00248739]
[1722718994982,0.497074,60353.0,60352.0,0.000913]
[1722718995944,1.42559089,60353.0,60352.0,0.000913]
[1722718996151,1.66336038,60353.0,60352.0,0.000913]
[1722718996552,1.68636038,60353.0,60352.0,0.000913]
[1722718997684,2.01774338,60353.0,60352.0,0.000913]
[1722718998086,1.169917,60349.0,60348.0,0.13887477]
[1722718998289,4.49568009,60349.0,60348.0,0.02094643]
[1722718998490,4.42927505,60349.0,60348.0,0.02094643]
[1722718998671,4.13174553,60349.0,60348.0,0.02094643]
[1722718998872,4.08273304,60349.0,60348.0,0.02094643]
[1722718999282,4.03867454,60349.0,60348.0,0.02094643]
[1722718999484,4.12748083,60349.0,60348.0,0.02094643]
[1722718999698,4.12748171,60349.0,60348.0,0.02094643]
[1722719000078,0.1,60339.0,60338.0,0.14999999]
[1722719000282,1.00904089,60339.0,60338.0,0.14999999]
[1722719000449,2.59999246,60339.0,60338.0,0.14999999]
[1722719001017,2.24852089,60339.0,60338.0,0.14999999]
[1722719001215,2.24124909,60339.0,60338.0,0.14999999]
[1722719001661,2.38634909,60339.0,60338.0,0.14999999]
[1722719001874,2.24124909,60339.0,60338.0,0.14999999]
[1722719002712,1.66368909,60339.0,60338.0,0.14999999]
[1722719003106,1.88678909,60339.0,60338.0,0.14999999]
[1722719003280,1.78678909,60339.0,60338.0,0.14999999]
[1722719003501,1.88678909,60339.0,60338.0,0.14999999]
[1722719004151,1.66368909,60339.0,60338.0,0.14999999]
[1722719005270,1.88678909,60339.0,60338.0,0.14999999]
[1722719005624,1.91976749,60339.0,60338.0,0.14999999]
[1722719005825,2.25122749,60339.0,60338.0,0.14999999]
[1722719006027,1.91976749,60339.0,60338.0,0.14999999]
[1722719006665,1.69666749,60339.0,60338.0,0.14999999]
[1722719006888,1.67366749,60339.0,60338.0,0.14999999]
[1722719009360,1.73127005,60339.0,60338.0,0.14999999]
[1722719009567,2.81013861,60339.0,60338.0,0.14999999]
[1722719009765,2.45504761,60339.0,60338.0,0.14999999]
[1722719010091,2.2715988,60339.0,60338.0,0.14999999]
[1722719010251,2.1264988,60339.0,60338.0,0.14999999]
[1722719010586,2.1264954,60339.0,60338.0,0.14999999]
[1722719011118,2.1034954,60339.0,60338.0,0.14999999]
[1722719011415,2.7245714,60339.0,60338.0,0.14999999]
[1722719011594,2.74758192,60339.0,60338.0,0.14999999]
[1722719013172,3.07904192,60339.0,60338.0,0.14999999]
[1722719013372,1.591817,60329.0,60325.0,0.00932]
[1722719013598,2.76889418,60329.0,60325.0,0.00932]
[1722719015749,2.77887911,60329.0,60325.0,0.00932]
[1722719015904,2.75587911,60329.0,60325.0,0.00932]
[1722719017192,2.42436411,60329.0,60326.0,0.0605]
[1722719017398,1.99452413,60329.0,60327.0,0.0779]
[1722719017624,2.05210432,60329.0,60327.0,0.0779]
[1722719017853,1.99452413,60329.0,60327.0,0.0779]
[1722719020265,2.20128326,60329.0,60325.0,0.00932]
[1722719020605,1.85669748,60329.0,60325.0,0.00932]
[1722719020815,2.201281,60329.0,60325.0,0.00932]
[1722719021012,2.0520867,60329.0,60325.0,0.00932]
[1722719021250,0.19538922,60329.0,60328.0,0.28839999]
[1722719021445,0.13783341,60329.0,60328.0,0.45415999]
[1722719021668,0.13783341,60329.0,60328.0,0.45573438]
[1722719021840,0.63510541,60329.0,60328.0,0.28997438]
[1722719022018,1.4638863,60329.0,60328.0,0.28839999]
[1722719022225,1.4638863,60329.0,60328.0,0.14999999]
[1722719022601,1.6423863,60329.0,60328.0,0.14999999]
[1722719022935,1.7423863,60329.0,60328.0,0.14999999]
[1722719023394,1.94913186,60329.0,60328.0,0.14999999]
[1722719023956,1.77063186,60329.0,60328.0,0.14999999]
[1722719025412,2.10214686,60329.0,60328.0,0.14999999]
[1722719025611,2.19154686,60329.0,60328.0,0.14999999]
[1722719025984,2.27364686,60329.0,60328.0,0.14999999]
[1722719026619,1.95211177,60329.0,60328.0,0.14999999]
[1722719026815,1.80361177,60329.0,60328.0,0.14999999]
[1722719027072,1.82961464,60329.0,60328.0,0.14999999]
[1722719027197,2.16112964,60329.0,60328.0,0.14999999]
[1722719027418,1.80361177,60329.0,60328.0,0.14999999]
[1722719027847,2.13512677,60329.0,60328.0,0.14999999]
[1722719028543,1.78061177,60329.0,60328.0,0.14999999]
[1722719029058,1.80361177,60329.0,60328.0,0.14999999]
[1722719029460,1.80361177,60329.0,60328.0,0.15091299]
[1722719029461,2.13512677,60329.0,60328.0,0.15091299]
[1722719030502,2.13516727,60329.0,60328.0,0.15091299]
[1722719030683,2.16117095,60329.0,60328.0,0.15091299]
[1722719030882,2.16117195,60329.0,60328.0,0.15091299]
[1722719031174,2.23521736,60329.0,60328.0,0.15091299]
[1722719031972,2.56673236,60329.0,60328.0,0.15091299]
[1722719032167,2.23521736,60329.0,60328.0,0.15091299]
[1722719032594,2.68697036,60329.0,60328.0,0.15091299]
[1722719033002,2.41311736,60329.0,60328.0,0.15091299]
[1722719033215,2.74463236,60329.0,60328.0,0.15091299]
[1722719033702,2.41311736,60329.0,60328.0,0.15091299]
[1722719033903,2.74463236,60329.0,60328.0,0.15091299]
[1722719034109,2.75463236,60329.0,60328.0,0.15091299]
[1722719034428,2.75463236,60329.0,60328.0,0.1454299]
[1722719034649,2.83673236,60329.0,60328.0,0.1454299]
[1722719034812,2.83673236,60329.0,60325.0,0.00932]
[1722719034813,1.823635,60319.0,60316.0,0.0001]
[1722719035035,0.497371,60317.0,60316.0,0.0001]
[1722719035238,3.63551436,60317.0,60316.0,0.0001]
[1722719035438,0.81176,60308.0,60297.0,0.14999999]
[1722719035653,2.28044915,60308.0,60297.0,0.14999999]
[1722719035856,2.4527739,60308.0,60307.0,0.14911934]
[1722719036058,2.2078739,60308.0,60307.0,0.07263341]
[1722719036258,1.8426327,60308.0,60307.0,0.07263341]
[1722719036458,1.62182851,60308.0,60307.0,0.07263341]
[1722719036709,1.56430408,60308.0,60307.0,0.07263341]
[1722719036908,1.93923174,60308.0,60307.0,0.07263341]
[1722719037124,1.44945589,60308.0,60307.0,0.07263341]
[1722719037351,1.79419019,60308.0,60307.0,0.07263341]
[1722719037500,1.65764661,60308.0,60307.0,0.07263341]
[1722719037702,1.57712862,60308.0,60307.0,0.07263341]
[1722719038105,1.57712862,60308.0,60307.0,0.14833341]
[1722719038106,1.24549862,60308.0,60307.0,0.14833341]
[1722719038309,1.24549862,60308.0,60307.0,0.21003341]
[1722719038310,0.13789372,60308.0,60307.0,0.21003341]
[1722719038671,0.16390494,60308.0,60307.0,0.21003341]
[1722719038869,0.16390494,60308.0,60307.0,0.37585141]
[1722719039134,0.66134994,60308.0,60307.0,0.21003341]
[1722719039522,0.32971994,60308.0,60307.0,0.21003341]
[1722719039786,0.16390494,60308.0,60307.0,0.21003341]
[1722719040701,0.16386761,60308.0,60307.0,0.21003341]
[1722719041866,0.16386761,60308.0,60307.0,0.71748741]
[1722719042068,0.02601122,60308.0,60307.0,0.21003341]
[1722719042334,0.19182622,60308.0,60307.0,0.21003341]
[1722719042540,0.82706049,60308.0,60307.0,0.21003341]
[1722719042718,0.49543049,60308.0,60307.0,0.21003341]
[1722719042920,0.16387351,60308.0,60307.0,0.21003341]
[1722719043736,0.19182622,60308.0,60307.0,0.21003341]
[1722719044034,0.16386658,60308.0,60307.0,0.21003341]
[1722719044375,0.02601122,60308.0,60307.0,0.73748741]
[1722719044848,0.02601122,60308.0,60307.0,0.73948741]
[1722719045042,0.02601122,60308.0,60307.0,0.73748741]
[1722719045399,0.02601122,60308.0,60307.0,1.40275941]
[1722719045598,0.02601122,60308.0,60307.0,1.06912341]
[1722719046206,0.02601122,60308.0,60307.0,1.07112341]
[1722719046647,0.1,60322.0,60312.0,0.1546]
[1722719046849,0.13783415,60321.0,60319.0,0.1446]
[1722719047052,0.30361615,60320.0,60319.0,0.1446]
[1722719047256,0.63518015,60320.0,60319.0,0.1446]
[1722719048157,0.30361615,60320.0,60319.0,0.1446]
[1722719048333,0.63518015,60320.0,60319.0,0.1446]
[1722719048629,0.30361615,60320.0,60319.0,0.1446]
[1722719049072,0.13783415,60320.0,60319.0,0.1446]
[1722719049279,0.33153289,60320.0,60319.0,0.1446]
[1722719050108,0.026005,60320.0,60319.0,0.1446]
[1722719050337,0.357569,60320.0,60319.0,0.1446]
[1722719050542,0.523351,60320.0,60319.0,0.1446]
[1722719050716,0.854915,60320.0,60319.0,0.1446]
[1722719051046,0.82891,60320.0,60319.0,0.1446]
[1722719051197,0.82891,60320.0,60309.0,0.01652526]
[1722719051198,0.497395,60314.0,60313.0,0.1446]
[1722719051406,0.497395,60314.0,60313.0,0.0662]
[1722719051977,0.497395,60314.0,60309.0,0.00157439]
[1722719051978,0.497428,60310.0,60309.0,0.00157439]
[1722719052176,0.497428,60310.0,60308.0,0.4684]
[1722719052177,0.829062,60309.0,60308.0,0.4684]
[1722719052373,1.260687,60309.0,60308.0,0.4684]
[1722719052802,1.27347874,60309.0,60308.0,0.4684]
[1722719052996,1.27347883,60309.0,60308.0,0.4684]
[1722719054071,1.29948837,60309.0,60308.0,0.4684]
[1722719055652,1.28669654,60309.0,60308.0,0.4684]
[1722719055866,0.02600954,60309.0,60308.0,0.4684]
[1722719056256,0.02600954,60309.0,60308.0,1.335305]
[1722719056465,0.66327931,60324.0,60307.0,0.07463341]
[1722719056466,0.49750831,60324.0,60316.0,0.331583]
[1722719056668,0.49750831,60324.0,60318.0,0.00157439]
[1722719056868,0.43151,60330.0,60317.0,0.00157439]
[1722719056869,0.1,60330.0,60317.0,0.00157439]
[1722719057071,0.16578,60321.0,60317.0,0.00157439]
[1722719057269,0.165784,60320.0,60317.0,0.00157439]
[1722719057418,0.1,60330.0,60315.0,0.00157439]
[1722719057419,0.165785,60319.0,60315.0,0.00157439]
[1722719058023,0.331549,60323.0,60315.0,0.00157439]
[1722719058280,0.165793,60316.0,60315.0,0.00157439]
[1722719058928,0.331565,60320.0,60315.0,0.00157439]
[1722719059151,0.165789,60318.0,60315.0,0.00157439]
[1722719059350,0.165781,60321.0,60315.0,0.16736939]
[1722719059551,0.331565,60320.0,60315.0,0.00157439]
[1722719059749,0.165786,60319.0,60315.0,0.00157439]
[1722719060571,0.331547,60324.0,60315.0,0.16736939]
[1722719060772,0.165786,60319.0,60315.0,0.00157439]
[1722719061350,0.16575089,60326.0,60315.0,0.00157439]
[1722719061553,0.16575089,60326.0,60314.0,0.1546]
[1722719061554,0.25062247,60325.0,60314.0,0.1546]
[1722719061752,0.13783404,60324.0,60314.0,0.1546]
[1722719061957,0.165785,60319.0,60315.0,0.00157439]
[1722719062152,0.165785,60319.0,60314.0,0.320398]
[1722719062380,0.165782,60320.0,60315.0,0.16736939]
[1722719062583,0.02600507,60319.0,60318.0,0.476175]
[1722719062820,0.02600507,60319.0,60318.0,0.651962]
[1722719063028,0.19179007,60319.0,60318.0,0.1446]
[1722719063210,0.497395,60314.0,60313.0,0.14617439]
[1722719063401,1.160589,60314.0,60313.0,0.1446]
[1722719063602,0.96684216,60314.0,60313.0,0.1446]
[1722719064177,0.63524516,60314.0,60313.0,0.1446]
[1722719064588,0.13785016,60314.0,60313.0,0.1446]
[1722719064813,0.165797,60315.0,60313.0,0.1446]
[1722719065019,0.00091301,60325.0,60313.0,0.1446]
[1722719065020,0.33157,60319.0,60313.0,0.1446]
[1722719065386,0.009726,60321.0,60313.0,0.1446]
[1722719065387,0.165798,60314.0,60313.0,0.1446]
[1722719065565,0.63524055,60314.0,60313.0,0.1446]
[1722719065763,0.30364355,60314.0,60313.0,0.1446]
[1722719066394,0.13784555,60314.0,60313.0,0.1446]
[1722719066598,0.165809,60310.0,60309.0,0.06217439]
[1722719066800,0.165809,60310.0,60309.0,0.0606]
[1722719066801,0.497428,60310.0,60309.0,0.0606]
[1722719067026,0.497428,60310.0,60308.0,0.0813]
[1722719067027,0.13785522,60310.0,60308.0,0.0706]
[1722719067223,0.165811,60310.0,60309.0,0.08287439]
[1722719067425,0.63528371,60310.0,60309.0,0.0813]
[1722719067831,0.96690271,60310.0,60309.0,0.0813]
[1722719068376,0.13785371,60310.0,60307.0,0.07263341]
[1722719068579,0.497445,60308.0,60307.0,0.07263341]
[1722719068784,0.96692871,60308.0,60307.0,0.07263341]
[1722719069319,0.99293804,60308.0,60307.0,0.07263341]
[1722719069520,0.66130804,60308.0,60307.0,0.07263341]
[1722719069754,0.30366871,60308.0,60307.0,0.07263341]
[1722719070105,0.64807888,60308.0,60307.0,0.07263341]
[1722719070344,0.63530794,60308.0,60307.0,0.07263341]
[1722719070763,0.13785986,60308.0,60307.0,0.07263341]
[1722719071012,0.30367486,60308.0,60307.0,0.07263341]